bitfinex/quotes_ETHUSD_20241130
["timestamp","ask_amount","ask_price","bid_price","bid_amount"]
[1732934342680,2.95069,3635.5,3635.0,0.08602238]
[1732934342882,2.75086,3635.3,3635.1,0.08602238]
[1732934343075,2.75086,3635.3,3634.9,0.08602238]
[1732934343301,2.75086,3635.3,3635.0,0.086029]
[1732934343506,2.75086,3635.3,3635.1,0.086029]
[1732934343679,2.75086,3635.3,3634.8,0.13763581]
[1732934344009,2.75074,3635.4,3634.9,0.08602867]
[1732934344167,2.75074,3635.4,3635.0,0.08602867]
[1732934344366,2.75074,3635.4,3635.1,0.08602867]
[1732934344572,2.75088,3635.2,3634.7,1.3285]
[1732934344790,2.7511,3635.0,3634.8,0.08603352]
[1732934345011,2.70088,3635.2,3634.9,0.08603352]
[1732934345214,2.75073,3635.4,3635.0,0.08603352]
[1732934345387,2.75073,3635.4,3634.8,0.1376477]
[1732934345565,2.75073,3635.4,3634.9,0.08603174]
[1732934345770,2.75073,3635.4,3635.0,0.08603174]
[1732934346080,2.75073,3635.4,3635.1,0.08603174]
[1732934346390,2.75073,3635.4,3634.8,2.75116]
[1732934346593,2.75073,3635.4,3634.9,0.22367828]
[1732934346768,2.75073,3635.4,3635.0,0.08603011]
[1732934346975,0.2,3635.5,3635.1,0.08603011]
[1732934347316,2.75073,3635.4,3635.2,0.08603011]
[1732934347470,2.75073,3635.4,3635.3,0.08603011]
[1732934347669,2.85025,3636.1,3635.3,2.83681011]
[1732934347913,2.85001,3636.4,3635.7,2.75043]
[1732934348217,0.25644318,3636.3,3635.9,2.75029]
[1732934348379,0.1,3636.7,3636.1,2.75014]
[1732934348380,0.25644318,3636.6,3636.1,2.75014]
[1732934348585,3.00627318,3636.6,3636.2,0.08600606]
[1732934348779,2.84983,3636.6,3636.3,0.08600162]
[1732934348979,2.84983,3636.6,3635.5,3.30064]
[1732934348980,2.77738899,3636.5,3635.5,3.30064]
[1732934349203,0.1,3635.8,3635.6,0.22360994]
[1732934349390,2.7505,3635.7,3635.1,0.13760612]
[1732934349593,2.7505,3635.7,3635.2,0.22362686]
[1732934349812,2.7505,3635.7,3635.3,0.08602074]
[1732934350103,2.75062,3635.6,3635.4,0.08602244]
[1732934350422,2.75062,3635.6,3635.5,0.08602244]
[1732934351234,2.85042,3635.8,3635.5,0.08602244]
[1732934351535,2.85066,3635.5,3635.2,0.1376359]
[1732934351723,2.75072,3635.4,3635.3,0.08602266]
[1732934352401,0.2,3635.5,3635.3,0.08602266]
[1732934352586,2.95066,3635.5,3635.0,0.1376359]
[1732934352787,2.95066,3635.5,3634.9,2.75104]
[1732934352788,2.95066,3635.5,3635.1,0.22366136]
[1732934352987,2.75074,3635.4,3635.2,0.08602546]
[1732934353191,2.75074,3635.4,3635.3,0.08602546]
[1732934353619,0.2,3635.5,3635.0,0.13764538]
[1732934353838,2.75084,3635.3,3635.1,0.08602849]
[1732934354148,2.75084,3635.3,3635.2,0.08602849]
[1732934354293,2.75044,3635.8,3635.2,2.83689849]
[1732934354499,0.2,3636.1,3635.3,0.22367387]
[1732934354733,3.55408767,3636.0,3635.5,2.75064]
[1732934354910,3.55408767,3636.0,3635.6,0.08602849]
[1732934355249,0.55408767,3636.0,3635.7,0.08602849]
[1732934355539,3.0,3635.8,3635.5,1.2896]
[1732934355701,3.0,3635.9,3635.6,0.08601712]
[1732934355896,3.0,3635.9,3635.7,0.08601712]
[1732934356232,2.75029,3636.0,3635.8,0.08601588]
[1732934356428,3.1,3636.1,3635.5,4.04024]
[1732934356632,2.74999,3636.4,3635.6,2.83658438]
[1732934356806,0.2566077,3636.3,3635.8,2.75036]
[1732934357012,0.1,3636.6,3635.9,0.22362246]
[1732934357211,2.75023,3636.1,3636.0,0.08600605]
[1732934357425,2.75023,3636.1,3635.8,0.13760968]
[1732934357626,2.75023,3636.1,3635.5,1.2896]
[1732934357838,2.75023,3636.1,3634.9,0.1319405]
[1732934357839,2.75044,3635.8,3635.6,0.22363669]
[1732934358035,2.75044,3635.8,3635.7,0.08601411]
[1732934358341,2.75044,3635.8,3635.3,0.13762533]
[1732934358637,2.75065,3635.5,3635.4,0.08602046]
[1732934359000,2.75056,3635.7,3635.4,0.08602046]
[1732934359200,2.85057,3635.6,3635.5,0.08602046]
[1732934359433,2.95034,3636.0,3635.5,0.08602046]
[1732934359612,2.7505,3635.7,3635.6,0.08602046]
[1732934360014,2.8505,3635.7,3635.6,0.08602046]
[1732934360363,2.8505,3635.7,3634.8,4.04076]
[1732934360364,2.75073,3635.4,3635.3,0.13762533]
[1732934360503,2.85075,3635.4,3635.0,0.13762533]
[1732934360701,2.75095,3635.1,3634.9,0.13762533]
[1732934361001,2.75095,3635.1,3634.5,2.7514]
[1732934361002,2.75095,3635.1,3635.0,0.08603411]
[1732934361207,2.77844899,3635.1,3635.0,0.22365944]
[1732934361416,6.80852727,3635.1,3635.0,0.08603411]
[1732934361622,2.85135,3634.6,3634.2,0.13768142]
[1732934361813,2.75153,3634.4,3634.3,0.08605293]
[1732934362007,3.00868338,3634.4,3634.3,0.08605293]
[1732934363211,2.85135,3634.6,3634.3,0.08605293]
[1732934363501,0.25714416,3634.5,3634.4,0.08605293]
[1732934363744,2.75141,3634.5,3634.4,0.08605293]
[1732934364423,0.1,3634.7,3634.4,0.08605293]
[1732934364640,2.75079,3635.4,3634.4,0.08605293]
[1732934364641,0.25707245,3634.8,3634.6,2.75131]
[1732934364812,3.1080311,3635.1,3634.7,0.08605293]
[1732934365143,3.00812974,3635.0,3634.8,0.08605293]
[1732934365442,2.75108,3635.0,3634.9,0.08605293]
[1732934365799,2.75143,3634.5,3633.8,1.7679405]
[1732934365999,2.75133,3634.6,3633.9,2.97558762]
[1732934366196,2.75141,3634.5,3634.0,0.22372762]
[1732934366401,2.75141,3634.5,3634.1,0.22372762]
[1732934366622,2.75156,3634.3,3634.2,0.08604908]
[1732934366811,2.75141,3634.5,3634.2,0.08604908]
[1732934367039,3.00858146,3634.4,3633.9,0.13767854]
[1732934367247,2.75153,3634.4,3634.0,0.08605668]
[1732934367407,2.75141,3634.5,3634.1,0.08605668]
[1732934367619,2.75141,3634.5,3634.2,0.08605668]
[1732934367955,2.75141,3634.5,3634.3,0.08605668]
[1732934368252,0.1,3634.6,3633.9,0.13767854]
[1732934368432,2.75149,3634.4,3634.0,0.22372928]
[1732934368608,2.75149,3634.4,3634.1,0.08605074]
[1732934368808,2.85138,3634.6,3634.2,0.08605074]
[1732934369016,0.2,3634.5,3634.3,0.08605074]
[1732934369222,0.2,3634.5,3634.0,0.13767854]
[1732934369223,2.95141,3634.5,3634.4,0.08605074]
[1732934369449,2.95141,3634.5,3634.0,0.13767854]
[1732934369645,2.95141,3634.5,3634.1,0.08604972]
[1732934369939,2.75156,3634.3,3634.2,0.08604972]
[1732934370139,2.75173,3634.1,3633.4,4.38943]
[1732934370340,2.75173,3634.1,3633.5,2.97590213]
[1732934370547,2.75173,3634.1,3633.6,0.22375213]
[1732934370847,2.75179,3634.0,3633.7,0.22375213]
[1732934371049,2.75179,3634.0,3633.8,0.08605851]
[1732934371209,2.75179,3634.0,3633.9,0.08605851]
[1732934371573,2.75163,3634.2,3633.9,0.08605851]
[1732934371742,2.75172,3634.1,3634.0,0.08605851]
[1732934372239,0.2,3634.3,3634.0,0.08605883]
[1732934372443,2.75171,3634.1,3633.5,2.88985362]
[1732934372659,2.75171,3634.1,3633.6,0.2237524]
[1732934372863,2.75171,3634.1,3633.7,0.08605878]
[1732934373159,2.75172,3634.1,3633.8,0.08605878]
[1732934373358,2.75172,3634.1,3633.9,0.08605878]
[1732934373507,2.75172,3634.1,3633.6,0.13769362]
[1732934373712,2.75172,3634.1,3633.7,0.08605899]
[1732934373939,2.75172,3634.1,3633.8,0.08605899]
[1732934374143,2.75177,3634.1,3633.9,0.08605899]
[1732934374312,2.75177,3634.1,3633.6,0.13769362]
[1732934374511,2.75177,3634.1,3633.7,0.08605896]
[1732934374752,2.75177,3634.1,3633.8,0.08605884]
[1732934375057,2.75177,3634.1,3633.9,0.08605884]
[1732934375215,2.75177,3634.1,3633.6,0.13769415]
[1732934375629,2.75177,3634.1,3633.7,0.08605897]
[1732934375829,2.75177,3634.1,3633.8,0.08605897]
[1732934376121,2.75177,3634.1,3633.6,0.13769415]
[1732934376461,4.94526666,3635.3,3634.6,2.75127]
[1732934376462,0.1,3635.3,3634.6,2.75127]
[1732934376618,0.1,3635.0,3634.3,2.75151]
[1732934376954,2.75138,3634.6,3634.4,0.08603554]
[1732934377268,2.75148,3634.4,3634.0,0.13767367]
[1732934377427,2.85138,3634.6,3634.1,0.08604687]
[1732934377631,2.77895899,3634.5,3634.2,0.08604687]
[1732934377834,2.77895899,3634.5,3634.3,0.08604687]
[1732934378031,2.75148,3634.4,3633.8,1.6372]
[1732934378245,2.75178,3634.1,3633.9,0.22373213]
[1732934378451,2.75178,3634.1,3633.8,1.6372]
[1732934378452,2.75178,3634.1,3634.0,0.08605082]
[1732934378615,2.75178,3634.1,3633.9,0.08605082]
[1732934378816,0.1,3634.3,3634.0,0.08605082]
[1732934379118,4.39313,3634.5,3634.0,0.08605082]
[1732934379119,2.75143,3634.5,3634.1,0.08605334]
[1732934379324,0.1,3634.3,3634.2,0.08605334]
[1732934379536,0.1,3634.3,3634.2,0.08604886]
[1732934379924,2.85156,3634.3,3634.2,0.08604886]
[1732934380246,0.1,3634.3,3634.2,0.08604886]
[1732934381266,2.75142,3634.5,3634.2,0.08604886]
[1732934381447,0.1,3634.3,3634.0,0.13768023]
[1732934381755,0.1,3634.3,3634.1,0.08605114]
[1732934381968,0.1,3634.3,3634.2,0.08605114]
[1732934382265,0.02749899,3634.4,3634.2,0.08605114]
[1732934382418,2.75136,3634.6,3634.3,0.08605114]
[1732934382617,0.1,3634.5,3634.4,0.08605114]
[1732934382853,3.521664,3634.5,3634.4,0.08605114]
[1732934383073,2.75171,3634.1,3633.5,2.8898072]
[1732934383379,2.75179,3634.0,3633.6,0.22374295]
[1732934383578,2.752,3633.8,3633.7,0.08605575]
[1732934384163,3.5151309,3633.8,3633.7,0.08605575]
[1732934384493,2.75216,3633.5,3633.4,1.6372]
[1732934385268,3.03651718,3633.5,3633.4,1.6372]
[1732934385476,2.75216,3633.5,3633.4,1.6372]
[1732934386171,3.00895173,3633.5,3633.4,1.6372]
[1732934386346,3.93932389,3633.5,3633.4,1.6372]
[1732934387634,2.75259,3633.0,3632.4,2.75299]
[1732934387839,2.75259,3633.0,3632.2,2.75311]
[1732934387840,2.75259,3633.0,3632.5,2.97672697]
[1732934388039,2.75275,3632.8,3632.6,0.22381697]
[1732934388267,2.75275,3632.8,3632.7,0.08608345]
[1732934388836,2.75275,3632.8,3632.7,0.08608927]
[1732934388837,2.75269,3632.8,3632.7,0.08608927]
[1732934389078,6.45071199,3632.8,3632.7,0.08608927]
[1732934389373,2.85322,3632.1,3632.0,0.13774284]
[1732934389558,2.85322,3632.1,3632.0,0.08609518]
[1732934389559,2.95322,3632.1,3632.0,0.08609518]
[1732934389761,2.95322,3632.1,3631.6,0.13774284]
[1732934389762,2.75345,3631.9,3631.6,0.13774284]
[1732934390071,2.75345,3631.9,3631.7,0.0861106]
[1732934390233,2.75345,3631.9,3631.4,0.1559433]
[1732934390234,2.75345,3631.9,3631.8,0.0861106]
[1732934391154,3.524117,3631.9,3631.8,0.0861106]
[1732934391485,2.75368,3631.5,3631.4,0.1559433]
[1732934391700,2.85368,3631.5,3631.4,0.1559433]
[1732934392344,2.85368,3631.5,3631.4,0.24206384]
[1732934392682,2.85368,3631.5,3631.4,0.1559433]
[1732934392884,0.1,3631.5,3631.4,0.1559433]
[1732934393085,0.1,3631.5,3631.4,0.24206329]
[1732934393267,2.85368,3631.5,3631.4,0.24206358]
[1732934393649,2.85368,3631.5,3631.4,0.1559433]
[1732934393842,2.85368,3631.5,3631.4,0.24206298]
[1732934394221,0.1,3631.5,3631.4,0.1559433]
[1732934394340,2.85368,3631.5,3631.4,0.1559433]
[1732934394540,3.524401,3631.5,3631.4,0.1559433]
[1732934397442,0.1,3631.5,3631.4,0.1559433]
[1732934397643,0.02749899,3631.6,3631.4,0.1559433]
[1732934397644,0.1,3632.1,3631.4,0.1559433]
[1732934397888,0.1,3632.3,3631.5,0.08611427]
[1732934398039,0.1,3631.9,3631.6,0.08611427]
[1732934398244,0.1,3631.9,3631.7,0.08611427]
[1732934398469,2.85339,3631.9,3631.4,0.29371981]
[1732934398675,2.75346,3631.8,3631.4,0.1559433]
[1732934399054,0.02749899,3631.7,3631.4,0.1559433]
[1732934399243,0.2,3632.5,3632.0,2.75329]
[1732934399683,0.2,3632.5,3631.7,2.75345]
[1732934399888,2.95293,3632.5,3631.8,2.83950928]
[1732934400183,2.95293,3632.5,3631.9,0.08609928]
[1732934400383,0.2,3632.5,3631.9,0.08609928]
[1732934400581,0.2,3632.5,3631.9,2.75332]
[1732934400791,0.2,3632.5,3631.9,0.28396093]
[1732934400953,2.95292,3632.5,3631.8,2.75344]
[1732934401159,2.95292,3632.5,3631.9,0.08609898]
[1732934401360,2.95292,3632.5,3631.8,2.75344]
[1732934401556,2.753,3632.4,3631.8,2.75344]
[1732934401774,5.50606,3632.4,3631.6,2.75356]
[1732934401975,0.2,3632.5,3631.7,2.7535]
[1732934401976,2.75308,3632.3,3631.7,2.7535]
[1732934402178,2.95297,3632.5,3631.8,2.75345]
[1732934402764,2.75309,3632.3,3631.6,2.75355]
[1732934402984,2.75309,3632.3,3631.7,0.08610127]
[1732934403197,2.85337,3631.9,3631.4,0.1559433]
[1732934403413,2.9536,3631.6,3631.4,0.1559433]
[1732934403707,2.75368,3631.5,3631.4,0.1559433]
[1732934404661,2.78117899,3631.5,3631.4,0.1559433]
[1732934404859,3.35465689,3631.5,3631.4,0.1559433]
[1732934406269,3.61034528,3631.5,3631.4,0.1559433]
[1732934406765,3.58284629,3631.5,3631.4,0.1559433]
[1732934407294,3.58290414,3631.5,3631.4,0.1559433]
[1732934407903,0.25574624,3631.5,3631.4,1.7864433]
[1732934408114,2.85357,3631.7,3631.4,1.7864433]
[1732934408115,0.2,3631.6,3631.4,1.7864433]
[1732934408608,0.2,3631.6,3631.5,0.08611691]
[1732934408812,0.2,3631.6,3631.5,0.08611706]
[1732934408972,0.2,3631.6,3631.4,1.7864433]
[1732934409176,2.75368,3631.5,3631.4,1.7864433]
[1732934409715,3.324402,3631.5,3631.4,0.1559433]
[1732934410310,2.75368,3631.5,3631.4,0.1559433]
[1732934410869,3.0,3632.0,3631.4,0.1559433]
[1732934410870,0.1,3631.9,3631.4,0.1559433]
[1732934411071,0.2,3631.8,3631.5,1.5444]
[1732934411813,2.95351,3631.8,3631.5,1.5444]
[1732934412019,2.75353,3631.7,3631.5,1.5444]
[1732934412313,2.75353,3631.7,3631.6,0.08611602]
[1732934413217,2.8536,3631.6,3631.5,1.5444]
[1732934413378,3.11024899,3631.6,3631.5,1.5444]
[1732934413573,3.21024899,3631.6,3631.5,1.63052241]
[1732934414206,3.21024899,3631.6,3631.5,1.5444]
[1732934414374,3.21024899,3631.6,3631.5,1.63052309]
[1732934414574,0.35664899,3631.6,3631.5,1.63052309]
[1732934414882,0.42652669,3632.3,3631.7,2.75351]
[1732934414883,3.1,3632.3,3631.7,2.75351]
[1732934415070,3.00996275,3632.2,3631.8,0.22390219]
[1732934415271,0.1,3632.0,3631.9,0.22390219]
[1732934415478,3.11010275,3632.0,3631.9,0.08612309]
[1732934415788,2.9533,3632.0,3631.9,0.22389631]
[1732934416105,0.25693459,3632.0,3631.9,0.22389619]
[1732934416308,0.25706339,3632.0,3631.9,0.22389619]
[1732934416466,3.21036339,3632.0,3631.9,0.22389619]
[1732934416667,0.35706339,3632.0,3631.9,0.22389619]
[1732934416871,0.35706339,3632.0,3631.9,1.76829619]
[1732934416872,0.25706339,3632.0,3631.9,1.76829619]
[1732934417484,0.41150843,3632.5,3631.9,1.76829619]
[1732934417787,0.51150843,3632.6,3631.9,4.29777]
[1732934418114,0.51150843,3632.6,3631.4,0.1559433]
[1732934418115,2.75354,3631.7,3631.5,1.5444]
[1732934418317,0.1,3631.6,3631.5,1.5444]
[1732934418482,2.9536,3631.6,3631.5,1.5444]
[1732934419286,0.1,3631.6,3631.5,1.5444]
[1732934419492,2.9536,3631.6,3631.5,1.5444]
[1732934419802,0.1,3631.6,3631.5,1.5444]
[1732934420173,0.1,3631.9,3631.5,1.5444]
[1732934420378,0.1,3632.2,3631.5,1.5444]
[1732934420590,0.1,3632.2,3631.8,2.75345]
[1732934420812,0.1,3632.2,3631.9,1.5876]
[1732934421745,0.25746365,3632.1,3632.0,0.22389776]
[1732934422722,0.25746365,3632.1,3632.0,4.56479776]
[1732934422927,0.51186179,3632.5,3632.0,4.56479776]
[1732934423217,0.25739778,3632.4,3632.1,0.22389776]
[1732934423405,0.25739778,3632.3,3632.2,0.22389776]
[1732934424022,0.25739778,3632.3,3632.2,1.81369776]
[1732934425023,0.25739778,3632.3,3632.2,4.56684776]
[1732934425223,0.25725876,3632.4,3632.2,1.81369776]
[1732934425423,0.25725876,3632.3,3632.2,1.5898]
[1732934425719,3.11032876,3632.3,3632.2,0.08610185]
[1732934425923,0.1,3631.9,3631.8,0.13776924]
[1732934426128,0.35725876,3631.9,3631.8,0.08611185]
[1732934426421,3.11063876,3631.9,3631.8,0.22388787]
[1732934426584,3.21063876,3631.9,3631.8,0.08611185]
[1732934426790,3.84821782,3631.9,3631.8,0.08611185]
[1732934427212,3.87571681,3631.9,3631.8,0.08611185]
[1732934427418,2.75368,3631.5,3631.4,0.1559433]
[1732934427722,3.01093876,3631.5,3631.4,0.24206519]
[1732934427925,3.11093876,3631.5,3631.4,0.24206519]
[1732934428086,3.11093876,3631.5,3631.4,0.1559433]
[1732934428087,3.74857543,3631.5,3631.4,0.1559433]
[1732934428785,4.16041332,3631.5,3631.4,0.1559433]
[1732934429017,3.74857543,3631.5,3631.4,0.1559433]
[1732934429707,3.74857543,3631.5,3631.4,0.24207075]
[1732934429891,3.11093876,3631.5,3631.4,0.24207075]
[1732934430439,3.11093876,3631.5,3631.4,0.1559433]
[1732934430614,3.52277665,3631.5,3631.4,0.1559433]
[1732934431137,3.11093876,3631.5,3631.4,0.24207401]
[1732934431631,0.25725876,3631.5,3631.4,1.83187401]
[1732934431801,1.04951531,3632.3,3631.6,2.7536]
[1732934432003,0.25730255,3632.2,3631.7,2.97746985]
[1732934432191,0.35730255,3632.1,3631.8,0.22393985]
[1732934432400,0.1,3632.3,3631.9,0.22393985]
[1732934432700,0.1,3632.3,3631.4,2.62504945]
[1732934432701,0.25729129,3632.2,3632.0,0.22393985]
[1732934432912,0.1,3632.3,3631.6,2.75358]
[1732934432913,2.85309,3632.3,3632.1,0.08613071]
[1732934433126,2.85309,3632.3,3632.2,0.08613071]
[1732934433303,3.11038865,3632.3,3632.2,0.08613071]
[1732934434302,3.13788764,3632.3,3632.2,0.08613071]
[1732934434541,3.11038865,3632.3,3632.2,0.08613071]
[1732934434838,2.75351,3631.8,3631.5,0.13778526]
[1732934435055,3.01083865,3631.7,3631.6,0.22389846]
[1732934435231,0.45729865,3631.7,3631.6,0.0861132]
[1732934435433,0.25729865,3631.7,3631.6,0.22390471]
[1732934435648,0.1,3632.1,3631.6,2.97750471]
[1732934435835,0.25736387,3632.0,3631.7,0.22390471]
[1732934436162,0.2,3632.3,3631.9,1.5898]
[1732934436314,0.25738976,3632.2,3632.0,0.22390471]
[1732934436517,0.2,3632.3,3632.1,0.08610434]
[1732934436717,0.61182529,3632.3,3632.2,0.08610434]
[1732934436964,0.66921452,3632.3,3632.2,0.08610434]
[1732934437132,0.25738923,3632.3,3632.2,2.97701387]
[1732934437317,0.25738923,3632.3,3632.2,0.22386387]
[1732934438260,0.25738923,3632.3,3632.2,2.97701387]
[1732934438470,0.1,3632.6,3632.3,2.75305]
[1732934438621,0.25736105,3632.5,3632.4,0.22386387]
[1732934439295,0.25736105,3632.5,3632.4,0.08610434]
[1732934439461,2.75249,3633.1,3632.4,1.81366387]
[1732934439462,0.2573095,3632.7,3632.4,1.81366387]
[1732934439618,1.04719335,3633.1,3632.7,2.75277]
[1732934439824,0.25730674,3633.0,3632.8,0.22383606]
[1732934440018,3.41182529,3633.2,3632.7,2.75277]
[1732934440019,3.0,3633.2,3632.9,0.08608282]
[1732934440252,3.0,3633.2,3633.0,1.67588282]
[1732934440253,0.25729432,3633.1,3633.0,1.67588282]
[1732934440768,0.25729432,3633.1,3633.0,4.74750817]
[1732934440923,0.1,3633.4,3633.0,4.56614681]
[1732934441117,0.25720951,3633.3,3633.1,0.22379978]
[1732934441317,0.1,3633.5,3633.1,2.89018399]
[1732934441630,0.25704814,3633.6,3633.3,2.75231]
[1732934441820,0.1,3633.9,3633.5,2.75211]
[1732934442020,0.1,3633.9,3633.6,2.88980143]
[1732934442249,0.2,3634.0,3633.7,0.13771143]
[1732934442767,0.1,3634.0,3633.7,0.13771143]
[1732934442970,0.1,3634.0,3633.0,3.20250248]
[1732934442971,0.1,3634.0,3633.8,0.13771143]
[1732934443175,0.1,3634.0,3633.6,0.13771143]
[1732934443479,0.1,3634.0,3633.5,2.88980143]
[1732934443676,0.1,3634.0,3633.6,0.13771143]
[1732934444179,0.1,3634.0,3633.6,1.79791143]
[1732934444350,0.1,3634.0,3633.6,1.6602]
[1732934444733,0.1,3634.0,3633.6,4.41227]
[1732934445070,0.1,3634.0,3633.7,2.88969175]
[1732934445241,0.1,3634.0,3633.7,2.752]
[1732934445831,0.1,3634.0,3633.7,2.75196]
[1732934446273,0.1,3634.0,3633.8,2.75191]
[1732934446581,0.1,3634.7,3634.3,2.7515]
[1732934446738,0.1,3634.7,3634.4,1.6602]
[1732934447138,0.1,3634.9,3634.4,1.6602]
[1732934447446,0.2,3635.2,3634.4,1.6602]
[1732934447767,0.1,3635.2,3634.8,2.75117]
[1732934447979,0.1,3635.3,3634.9,2.75104]
[1732934448179,0.1,3635.3,3635.0,2.75102]
[1732934448479,0.1,3635.5,3635.0,2.75102]
[1732934448636,0.670101,3635.5,3635.0,2.75102]
[1732934448831,0.1,3635.4,3635.1,1.606]
[1732934449570,0.1,3635.2,3635.1,1.606]
[1732934449735,0.1,3635.4,3635.1,1.606]
[1732934450249,0.1,3635.6,3635.1,4.35693]
[1732934450939,0.1,3635.5,3635.1,4.35693]
[1732934451291,0.1,3634.5,3633.9,1.606]
[1732934451573,0.1,3634.4,3633.9,1.606]
[1732934451807,2.85149,3634.4,3633.9,1.606]
[1732934451942,0.1,3634.4,3633.9,1.606]
[1732934452144,0.1,3635.4,3634.0,1.606]
[1732934452345,0.1,3635.1,3634.8,2.75111]
[1732934452557,0.1,3635.4,3634.3,0.02751136]
[1732934452759,0.1,3635.4,3634.8,2.75115]
[1732934452960,0.1,3635.4,3635.1,2.75092]
[1732934453160,0.1,3635.6,3634.9,1.606]
[1732934453359,0.1,3635.4,3635.1,2.75088]
[1732934453747,2.9505,3635.7,3635.1,2.75088]
[1732934453952,0.1,3635.4,3635.1,2.75088]
[1732934454882,0.1,3635.8,3634.9,1.606]
[1732934455080,0.1,3635.8,3635.3,2.75079]
[1732934455443,0.1,3635.4,3635.3,2.75079]
[1732934455678,0.1,3635.8,3635.3,2.75079]
[1732934456079,0.1,3635.7,3635.1,2.75095]
[1732934456287,0.1,3635.5,3635.0,2.75099]
[1732934456484,0.1,3635.5,3635.1,0.0860203]
[1732934456485,0.2,3635.5,3635.1,0.0860203]
[1732934456656,0.2,3635.5,3634.9,1.606]
[1732934456657,2.75086,3635.3,3634.9,1.606]
[1732934457181,0.1,3635.3,3634.9,1.606]
[1732934457892,0.1,3635.7,3634.9,1.606]
[1732934458048,0.1,3635.7,3635.0,2.83702585]
[1732934458247,0.1,3635.7,3635.2,2.75082]
[1732934458490,2.85045,3635.8,3635.0,2.751]
[1732934458491,0.1,3635.8,3635.3,2.75079]
[1732934458871,0.1,3635.7,3635.1,2.75091]
[1732934459174,0.1,3635.7,3635.2,2.83688829]
[1732934459364,0.1,3635.7,3635.3,0.08601829]
[1732934459691,2.95052,3635.7,3634.9,4.3571]
[1732934459984,0.1,3635.5,3635.2,2.75086]
[1732934460147,2.75072,3635.4,3635.3,0.08602111]
[1732934460347,0.1,3634.9,3634.2,1.606]
[1732934460652,0.1,3634.7,3634.3,2.83753045]
[1732934460986,2.7509,3635.2,3634.5,2.75134]
[1732934460987,2.8509,3635.2,3634.5,2.75134]
[1732934461198,1.6363,3635.4,3634.6,0.22369402]
[1732934461377,0.1,3635.4,3634.9,2.75109]
[1732934461688,0.1,3635.4,3634.2,2.92365538]
[1732934461689,0.1,3635.7,3635.3,2.7508]
[1732934461914,0.2,3635.9,3635.4,0.0860357]
[1732934462114,0.38039392,3635.9,3635.5,2.75058]
[1732934462321,0.1,3635.8,3635.4,2.75072]
[1732934462522,0.1,3636.3,3635.5,2.97425497]
[1732934462681,0.1,3636.3,3635.3,0.17201786]
[1732934462682,0.1,3636.3,3635.6,2.97419497]
[1732934462881,0.1,3636.3,3635.7,0.08601068]
[1732934463084,0.1,3636.3,3635.8,0.08601068]
[1732934463320,0.1,3636.3,3635.9,0.08601068]
[1732934463525,0.1,3636.3,3635.7,2.75049]
[1732934463526,2.85011,3636.3,3635.7,2.75049]
[1732934463684,0.1,3636.3,3635.8,2.83641923]
[1732934463890,0.1,3637.2,3636.9,2.74957]
[1732934464082,0.438545,3637.2,3636.5,2.74987]
[1732934464295,0.1,3637.3,3636.8,2.74963]
[1732934464500,0.1,3637.6,3637.1,2.74943]
[1732934464683,0.2,3637.6,3637.2,0.0859824]
[1732934464914,0.452458,3637.6,3637.3,0.0859824]
[1732934465088,0.1,3637.8,3637.4,2.8351424]
[1732934465283,0.1,3637.6,3637.5,0.13755617]
[1732934465625,0.1,3637.6,3637.5,0.0859824]
[1732934466187,0.1,3637.6,3637.5,0.22353857]
[1732934467134,0.1,3637.6,3637.5,0.0859703]
[1732934467421,0.1,3637.6,3637.5,0.22352278]
[1732934467727,2.94906,3637.6,3637.5,0.0859703]
[1732934467945,3.243966,3637.6,3637.5,0.0859703]
[1732934468532,3.243966,3637.6,3637.5,0.08597586]
[1732934468699,3.243966,3637.6,3637.5,0.22353847]
[1732934468903,3.243966,3637.6,3637.5,0.08597586]
[1732934469420,3.243966,3637.6,3637.5,0.2235401]
[1732934469627,3.243966,3637.6,3637.5,0.08597586]
[1732934469830,3.143966,3637.6,3637.5,0.22354178]
[1732934470140,0.1,3637.7,3637.5,1.71384178]
[1732934470348,0.1,3637.7,3637.6,0.13756592]
[1732934470497,0.1,3637.7,3637.6,0.22354178]
[1732934470698,0.1,3637.7,3637.6,0.39547708]
[1732934471338,0.1,3637.7,3637.6,3.14453708]
[1732934471535,4.5114,3638.6,3637.8,2.74886]
[1732934471536,0.1,3638.2,3637.8,2.74886]
[1732934471722,0.1,3638.2,3637.9,0.39547708]
[1732934471929,0.1,3638.2,3638.0,0.39547708]
[1732934472116,0.1,3638.2,3638.1,0.39547708]
[1732934473029,0.1,3638.2,3638.1,0.22354178]
[1732934473214,0.1,3638.2,3638.1,0.39547708]
[1732934473607,0.1,3638.4,3638.1,0.39547708]
[1732934473943,0.1,3638.5,3638.2,3.00643771]
[1732934474159,0.1,3638.5,3638.3,0.39538182]
[1732934474311,0.1,3638.5,3638.1,0.12992032]
[1732934474312,0.1,3638.5,3638.4,0.39538182]
[1732934476101,4.45978,3638.5,3638.4,0.39538182]
[1732934476306,8.43565446,3638.5,3638.4,0.08595257]
[1732934476806,0.1,3638.0,3637.7,0.17193883]
[1732934477050,0.1,3638.2,3637.8,0.39544071]
[1732934477249,0.1,3638.2,3637.9,3.14427071]
[1732934477447,2.74839,3638.5,3638.0,0.39544071]
[1732934477683,2.84823,3638.7,3638.1,2.74868]
[1732934477953,0.1,3638.7,3638.2,3.14394317]
[1732934478183,0.1,3638.7,3638.3,0.22347744]
[1732934478373,0.1,3638.7,3638.4,0.22347744]
[1732934478547,0.1,3638.7,3638.5,0.39538317]
[1732934478747,0.1,3638.7,3638.2,2.74856]
[1732934478748,2.84823,3638.7,3638.6,0.39538317]
[1732934479285,2.84823,3638.7,3638.6,1.71377744]
[1732934479465,0.64831371,3639.8,3639.4,1.4903]
[1732934479794,0.2,3640.5,3640.0,2.74725]
[1732934479994,0.2,3640.5,3640.1,0.39538674]
[1732934480290,0.1,3640.7,3640.4,2.74693]